Cogmind - Beta 16 @@@ ROGUE MODE // 2026.01.27 @ 11:07:31 Player: Ev Result: Destroyed by G-67 Veteran with Plasma Rifle Performance ------------- Evolutions (7) 3500 Regions Visited (6) 1200 Robots Destroyed (68) 340 Value Destroyed (3046) 3046 Prototype IDs (10) 200 Alien Tech Used (0) 0 Bonus (800) 800 TOTAL SCORE: 9086 Bonus ------- Registered with UFD 300 Met Optimus in HQ 500 Cogmind --------- Core Integrity 0/1300 Matter 300/300 Energy 74/100 System Corruption 6% Temperature Cool (12) Movement Core (100) Ox1 Location -3/Research Parts ------- > --- POWER (1) -------- (None) > --- PROPULSION (6) --- (None) > --- UTILITY (10) ----- (None) > --- WEAPON (4) ------- Companion Sword > --- INVENTORY (5) ---- Gravity Neutralizer Plasma Rifle Peak State ------------ > --- POWER ------------ Fusion Reactor > --- PROPULSION ------- Combat Gravmag System Combat Gravmag System Combat Gravmag System Combat Gravmag System Combat Gravmag System > --- UTILITY ---------- Advanced Heat Sink Large Storage Unit Improved Melee Analysis Suite Improved Melee Analysis Suite Improved Melee Analysis Suite Improved Focal Shield Remote Shield Mini Drone Bay Mini Drone Bay Mini Drone Bay > --- WEAPON ----------- Quantum Rifle Heavy Dispersion Rifle Heavy Missile Launcher Companion Sword > --- INVENTORY -------- Fusion Reactor Particle Reactor Improved Weapon Cycler System Restoration Module Mini Drone Bay Plasma Rifle Wave Gun Advanced Plasma Cannon Gauss Rifle Gauss Rifle Magnetic Acceleration Cannon [Rating: 117] Favorites ----------- Power Ion Engine Engine Ion Engine Power Core Neutrino Core Reactor Particle Reactor Propulsion Aluminum Leg Treads Medium Treads Leg Aluminum Leg Wheel Wheel Hover Unit Combat Gravmag System Flight Unit Cooled Nuclear Pulse Thruster Utility Improved Melee Analysis Suite Device Improved Focal Shield Storage Large Storage Unit Processor Improved Melee Analysis Suite Protection Scrap Shield Weapon Light Assault Rifle Energy Gun Heavy Dispersion Rifle Energy Cannon Advanced Plasma Cannon Ballistic Gun Light Assault Rifle Ballistic Cannon Magnetic Acceleration Cannon Launcher Heavy Missile Launcher Special Weapon Mining Laser Slashing Weapon Companion Sword Build | -11 -10 -10 -7 -5 -4 -3 ------- Run | Yrd Mat Sub Scr Fac Fac Res Slots Evolved 14 | . . . . 10 2 2 Power . | . . . . . . . Propulsion 4 | . . . . 1 1 2 Utility 8 | . . . . 7 1 . Weapon 2 | . . . . 2 . . Parts Attached 94 | 8 4 3 7 28 7 37 Power 13 | 1 . . 1 5 . 6 Engine 3 | 1 . . 1 1 . . Core 3 | . . . . 3 . . Reactor 7 | . . . . 1 . 6 Propulsion 31 | 4 1 . 5 12 . 9 Treads 2 | . . . . . . 2 Leg 19 | 2 1 . 5 4 . 7 Wheel 2 | 2 . . . . . . Hover 5 | . . . . 5 . . Flight 3 | . . . . 3 . . Utility 32 | 1 3 2 . 7 5 14 Device 17 | . 1 . . 4 . 12 Storage 3 | 1 1 . . 1 . . Processor 5 | . 1 . . 2 2 . Hackware . | . . . . . . . Protection 7 | . . 2 . . 3 2 Artifact . | . . . . . . . Weapon 18 | 2 . 1 1 4 2 8 Energy Gun 6 | . . . . 1 . 5 Energy Cannon 1 | . . . . 1 . . Ballistic Gun 6 | 2 . . . 1 1 2 Ballistic Cannon 1 | . . . . . . 1 Launcher 2 | . . . . 1 1 . Special Weapon 1 | . . 1 . . . . Impact Weapon . | . . . . . . . Slashing Weapon 1 | . . . 1 . . . Piercing Weapon . | . . . . . . . Special Melee Weapon . | . . . . . . . Unidentified Prototypes 6 | . . . 1 2 . 3 Corrupted Parts 1 | . . . . . . 1 System Corruption 6 | . . . . . . 6 Parts Lost 49 | . . . . 7 . 42 Power 6 | . . . . 2 . 4 Propulsion 10 | . . . . 1 . 9 Utility 22 | . . . . 1 . 21 Weapon 11 | . . . . 3 . 8 Highest Loss Streak 17 | . . . . 2 . 17 To Critical Strikes 1 | . . . . . . 1 Average Backups 6 | 2 7 5 4 5 9 7 Power . | . 1 . . . 1 . Propulsion . | 1 2 1 . 1 1 . Utility 2 | . 2 3 2 . 2 2 Weapon 2 | . 1 1 1 3 5 4 Tool/Special . | . . . . . . . Unused Backups 19 | 2 3 4 4 4 . 2 Power 3 | . 1 1 . 1 . . Propulsion 6 | 2 . 1 . 3 . . Utility 4 | . 1 1 2 . . . Weapon 6 | . 1 1 2 . . 2 Tool/Special . | . . . . . . . Average Slot Usage (%) 82 | . 96 86 84 64 81 81 Engine 9 | . 14 14 14 2 . . Leg 21 | . 28 28 28 12 . 11 Hover 2 | . . . . 3 21 9 Device 6 | . 1 . . 11 17 18 Storage 3 | . 14 1 . 4 5 3 Processor 5 | . 9 . . 8 12 13 Protection 7 | . . 13 14 2 9 1 Ballistic Gun 17 | . 28 27 25 5 1 . Slashing Weapon 2 | . . . 2 5 5 4 Peak Build Rating 117 | 6 8 9 21 69 82 117 Average Rating 32 | 5 7 8 10 47 79 95 On Entrance 27 | . 6 8 9 21 64 81 Avg Prop Armor Cover (%) 5 | . . . 3 4 . 7 Naked Turns . | . . . . . . . Heaviest Build 84 | 13 18 26 29 66 56 84 Greatest Support 120 | 26 20 20 38 65 56 120 Greatest Overweight (x) 8 | . . 1 1 8 . 8 Average Overweight (x) . | . . . . . . . Largest Inventory Capacity 15 | 8 10 10 5 15 15 15 Average Capacity 9 | 7 9 5 5 14 15 14 Most Carried 15 | 4 10 10 5 15 12 13 Average Carried 6 | 2 7 5 4 5 10 7 Final Capacity 15 | 8 10 5 5 15 15 5 Final Carried 12 | 4 10 5 5 10 12 2 Class Distribution -------------------- 78% | Mutant 13% | Scavenger-Mutant 3% | Scavenger-Tank Dominant Class ---------------- Mutant | -10/Materials Mutant | -10/Subcaves Mutant | -7/Scraptown Mutant | -5/Factory Mutant | -4/Factory Scavenger-Mutant | -3/Research Resources | -11 -10 -10 -7 -5 -4 -3 ----------- Run | Yrd Mat Sub Scr Fac Fac Res Matter Collected 1668 | 219 271 124 71 397 88 498 Remotely . | . . . . . . . Salvage Created 3576 | . 478 103 . 1157 350 1488 Parts 186 | . 32 4 . 46 17 87 Haulers Intercepted 3 | . 2 . . . . 1 Recyclers Shooed 1 | . . . . 1 . . Parts Field Recycled . | . . . . . . . Retrieved Matter . | . . . . . . . Parts Self-Destructed 9 | . . 9 . . . . Prevented . | . . . . . . . Parts Restored . | . . . . . . . Kills | -11 -10 -10 -7 -5 -4 -3 ------- Run | Yrd Mat Sub Scr Fac Fac Res Combat Hostiles Destroyed 56 | . 10 2 . 13 8 23 Melee 33 | . . . . 10 8 15 Guns 20 | . 10 2 . 2 . 6 Cannons 2 | . . . . . . 2 AOE 1 | . . . . 1 . . Classes Destroyed 15 | . 5 2 . 6 . 2 Worker 2 | . . . . 2 . . Builder 3 | . . . . 1 . 2 Hauler 3 | . 2 . . . . 1 Recycler 2 | . . . . 2 . . Operator 1 | . 1 . . . . . Watcher 1 | . 1 . . . . . Swarmer 12 | . 3 . . . 4 5 Cutter 3 | . . . . . . 3 Grunt 19 | . 7 . . 4 3 5 Brawler 1 | . . . . 1 . . Sentry 7 | . . 1 . 4 . 2 Hunter 5 | . . . . 2 . 3 Programmer 6 | . . . . 2 1 3 Heavy 2 | . . . . . . 2 Subdweller 1 | . . 1 . . . . Best Kill Streak 5 | . 5 1 . 5 5 5 Combat Bots Only 5 | . 3 1 . 2 5 5 Max Kills in Single Turn 2 | . 2 1 . 1 2 1 Gunslinging . | . . . . . . . Exploded 1 | . . . . 1 . . Melee 2 | . . . . 1 2 1 Uniques/NPCs Destroyed . | . . . . . . . Combat | -11 -10 -10 -7 -5 -4 -3 -------- Run | Yrd Mat Sub Scr Fac Fac Res Hostile Shots Fired 645 | . 20 15 7 82 70 451 Missed 174 | . 5 3 . 23 24 119 Hits 471 | . 15 12 7 59 46 332 Melee 17 | . . . 7 3 . 7 Projectile 454 | . 15 12 . 56 46 325 AOE 2 | . . . . . . 2 Critical Strikes 28 | . 1 . . 4 1 22 Part Disruptions 2 | . . . . 1 . 1 Damage Taken 9132 | . 187 227 23 1328 670 6697 Core 1740 | . 81 . . 222 130 1307 Absorbed by Shields 663 | . . . . . 140 523 Ignored by Resistances 582 | . . . . 114 97 371 Core Remaining (%) 83 | 100 . . 67 77 88 . Volleys Fired 111 | . 40 19 1 12 . 39 Largest 3 | . 2 2 1 2 . 3 Hottest 213 | . 40 100 20 98 . 213 Shots Fired 222 | . 80 35 1 20 . 86 Gun 192 | . 80 32 1 18 . 61 Cannon 20 | . . . . . . 20 Launcher 7 | . . . . 2 . 5 Special 3 | . . 3 . . . . Kinetic 145 | . 80 32 1 10 . 22 Thermal 46 | . . 3 . . . 43 Explosive 7 | . . . . 2 . 5 Electromagnetic 24 | . . . . 8 . 16 Robot Hit Streak 17 | . 11 14 5 9 . 17 Robot Miss Streak 6 | . 4 1 . 2 . 6 Penetration Max . | . . . . . . . Secondary Targets 3 | . 1 . . . . 2 Max Gunslinging Chain 1 | . 1 . . . . 1 Shots Hit Robots 308 | . 53 28 1 65 38 123 Core Hits 126 | . 26 6 . 28 12 54 Critical Kills 2 | . . . . . . 2 Critical Parts Destroyed 1 | . . . . . . 1 Critical Strikes 6 | . . 1 . 2 . 3 Destroy 4 | . . 1 . . . 3 Melee Attacks 175 | . . . . 56 39 80 Impact . | . . . . . . . Slashing 175 | . . . . 56 39 80 Piercing . | . . . . . . . Sneak Attacks 14 | . . . . 11 2 1 Combat Hostiles 1 | . . . . 1 . . Follow-up Attacks 5 | . . . . . 1 4 Damage Inflicted 9961 | . 597 196 4 2825 1772 4567 Guns 2222 | . 597 196 4 240 . 1185 Cannons 372 | . . . . . . 372 Explosions 229 | . . . . 109 . 120 Melee 7138 | . . . . 2476 1772 2890 Ramming . | . . . . . . . Kinetic 1384 | . 597 196 4 174 . 413 Thermal 778 | . . . . . . 778 Explosive 229 | . . . . 109 . 120 Electromagnetic 432 | . . . . 66 . 366 Impact . | . . . . . . . Slashing 7138 | . . . . 2476 1772 2890 Piercing . | . . . . . . . Highest Corruption 7 | . . . . 1 1 7 Average Corruption 1 | . . . . 1 1 3 Corruption Purged 5 | . . . . . . 5 Corruption Blocked . | . . . . . . . Effects 12 | . . . . 3 2 7 Message Errors 5 | . . . . 2 . 3 Matter Fused 5 | . . . . 1 1 3 Heat Flow Errors 1 | . . . . . 1 . Data Loss (minor) 1 | . . . . . . 1 Overload Shots . | . . . . . . . Overflow Damage 482 | . . . . 196 195 91 Projectiles . | . . . . . . . Explosions . | . . . . . . . Melee 482 | . . . . 196 195 91 Knockbacks 1 | . . . . . . 1 Impact . | . . . . . . . Kinetic 1 | . . . . . . 1 Secondary . | . . . . . . . Self-Inflicted Damage 26 | . . . . 26 . . Shots 1 | . . . . 1 . . Rammed . | . . . . . . . Targets Rammed . | . . . . . . . Kicked . | . . . . . . . Crushed . | . . . . . . . Highest Temperature 310 | . 27 . . 7 76 310 Average Temperature 112 | . 10 . . 4 44 137 Received Heat Transfer 1483 | . 123 45 . 315 114 886 Effects 1 | . . . . . . 1 Energy Bleed 1 | . . . . . . 1 Siege Activations . | . . . . . . . Martial Activations . | . . . . . . . Shielding Activations . | . . . . . . . Robots Disrupted 5 | . . . . 3 1 1 Combat Hostiles 4 | . . . . 3 . 1 Robots Corrupted . | . . . . . . . Combat Hostiles . | . . . . . . . Parts Fried 1 | . . . . . . 1 Impact Corruptions . | . . . . . . . Robots Melted . | . . . . . . . Combat Hostiles . | . . . . . . . Parts Melted . | . . . . . . . Heat Transferred 977 | . . . . . . 977 Parts Sabotaged . | . . . . . . . Parts Stolen . | . . . . . . . Parts Stripped . | . . . . . . . Power Chain Reactions . | . . . . . . . Alert | -11 -10 -10 -7 -5 -4 -3 ------- Run | Yrd Mat Sub Scr Fac Fac Res Maximum Alert Level . | . . . . . . . Low Security (%) 100 | 100 100 . . 100 100 100 Level 1 . | . . . . . . . Level 2 . | . . . . . . . Level 3 . | . . . . . . . Level 4 . | . . . . . . . Level 5 . | . . . . . . . High Security . | . . . . . . . Max Security . | . . . . . . . Peak Influence 149 | . 131 . . 149 135 144 Initial 65 | . . . . . 55 65 Average 50 | . 40 . . 59 65 53 Influence Increases 1677 | . 341 20 . 439 190 687 Destroy 0b10 Robot/C 1100 | . 200 20 . 260 160 460 Destroy 0b10 Robot/NC 60 | . 20 . . 25 . 15 Destroy Leader 278 | . 56 . . 70 30 122 Successful Hack 34 | . 20 . . . . 14 Select Force Hacks 30 | . 30 . . . . . Destroy Structure 130 | . . . . 54 . 76 Lose Combat Pursuer 45 | . 15 . . 30 . . Influence Decreases 1677 | . 270 91 . 326 178 812 Entered New Map 153 | . . 35 . . 58 60 Time Decay 1110 | . 270 56 . 256 120 408 Lost Part 354 | . . . . 70 . 284 Lost Ally 60 | . . . . . . 60 Squads Dispatched 14 | . 2 . . 3 2 7 Investigation 4 | . 1 . . 1 1 1 Extermination 3 | . . . . 2 . 1 Reinforcement 6 | . 1 . . . 1 4 Assault . | . . . . . . . Garrison 1 | . . . . . . 1 Intercept . | . . . . . . . Searches Triggered . | . . . . . . . Construction Impeded . | . . . . . . . Haulers Reinforced 1 | . . . . . 1 . Active Scanning Responses . | . . . . . . . Cargo Convoy Interrupts . | . . . . . . . Stealth | -11 -10 -10 -7 -5 -4 -3 --------- Run | Yrd Mat Sub Scr Fac Fac Res Distress Signals . | . . . . . . . Communications Jammed . | . . . . . . . Distress Signals . | . . . . . . . Times Spotted 84 | . 17 4 4 17 11 31 Peak Tracking Total 6 | . 4 2 2 4 5 6 Tactical Retreats 3 | . 1 . . 2 . . Traps | -11 -10 -10 -7 -5 -4 -3 ------- Run | Yrd Mat Sub Scr Fac Fac Res Traps Triggered 3 | . . . . 3 . . Indirectly . | . . . . . . . Trap Hack Attempts . | . . . . . . . Triggered . | . . . . . . . Disarmed . | . . . . . . . Reprogrammed . | . . . . . . . Reused . | . . . . . . . Traps Extracted . | . . . . . . . Installed . | . . . . . . . Triggered . | . . . . . . . Machines | -11 -10 -10 -7 -5 -4 -3 ---------- Run | Yrd Mat Sub Scr Fac Fac Res Machines Disabled . | . . . . . . . Max in Single Turn . | . . . . . . . Machines Repaired . | . . . . . . . Machines Dismantled . | . . . . . . . Machines Sabotaged . | . . . . . . . Overloaded Fab Kills . | . . . . . . . Hacking | -11 -10 -10 -7 -5 -4 -3 --------- Run | Yrd Mat Sub Scr Fac Fac Res Machines Accessed 19 | . 7 . 6 2 2 2 Terminals 10 | . 6 . . 2 1 1 Fabricators . | . . . . . . . Repair Stations . | . . . . . . . Recycling Units 3 | . 1 . . . 1 1 Scanalyzers . | . . . . . . . Garrison Access . | . . . . . . . Total Hacks 76 | . 23 . 44 3 3 3 Successful 65 | . 16 . 44 1 1 3 Failed 11 | . 7 . . 2 2 . Catastrophic 2 | . . . . 1 1 . Database Lockouts . | . . . . . . . Manual 26 | . 17 . . 3 3 3 Terminals 27 | . 21 . . 3 1 2 Fabricators . | . . . . . . . Repair Stations . | . . . . . . . Recycling Units 5 | . 2 . . . 2 1 Scanalyzers . | . . . . . . . Garrison Access . | . . . . . . . Terminal Hacks 51 | . 7 . 44 . . . Record 43 | . . . 43 . . . Prototype ID Bank 2 | . 2 . . . . . Open Door 1 | . . . 1 . . . Emergency Access Points 1 | . 1 . . . . . Alert Level 1 | . 1 . . . . . Locate Traps 2 | . 2 . . . . . Zone Layout 1 | . 1 . . . . . Fabricator Hacks . | . . . . . . . Repair Station Hacks . | . . . . . . . Recycling Unit Hacks . | . . . . . . . Scanalyzer . | . . . . . . . Garrison Access Hacks . | . . . . . . . Unauthorized Hacks 14 | . 9 . . 1 1 3 Terminals 11 | . 8 . . 1 . 2 Track 1 | . . . . . . 1 Botnet 8 | . 6 . . 1 . 1 Operators 2 | . 2 . . . . . Fabricators . | . . . . . . . Repair Stations . | . . . . . . . Recycling Units 3 | . 1 . . . 1 1 Tunnel 1 | . 1 . . . . . Fedlink 2 | . . . . . 1 1 Scanalyzers . | . . . . . . . Garrison Access . | . . . . . . . Data Cores Recovered . | . . . . . . . Used . | . . . . . . . Hacking Detections 11 | . 7 . . 2 1 1 Full Trace Events 1 | . 1 . . . . . Feedback Events . | . . . . . . . Feedback Blocked . | . . . . . . . Robot Schematics Acquired . | . . . . . . . Robots Built . | . . . . . . . Authchips . | . . . . . . . Time . | . . . . . . . Total Robot Build Rating . | . . . . . . . Part Schematics Acquired . | . . . . . . . Parts Built . | . . . . . . . Authchips . | . . . . . . . Time . | . . . . . . . Total Part Build Rating . | . . . . . . . Part Studies Acquired . | . . . . . . . Parts Repaired . | . . . . . . . Time . | . . . . . . . Parts Recycled . | . . . . . . . Recycled Matter . | . . . . . . . Retrieved Matter . | . . . . . . . Retrieved Components . | . . . . . . . Parts Scanalyzed . | . . . . . . . Part Schematics Acquired . | . . . . . . . Parts Damaged . | . . . . . . . Bothacking | -11 -10 -10 -7 -5 -4 -3 ------------ Run | Yrd Mat Sub Scr Fac Fac Res Used RIF Installer . | . . . . . . . Robots Hacked . | . . . . . . . Non-combat . | . . . . . . . Combat . | . . . . . . . Robot Hacks Applied . | . . . . . . . Relay Couplers Released . | . . . . . . . Fabnet Peak Effective % . | . . . . . . . Robots Rewired . | . . . . . . . Allies Hacked . | . . . . . . . Hacks Repelled . | . . . . . . . Allies | -11 -10 -10 -7 -5 -4 -3 -------- Run | Yrd Mat Sub Scr Fac Fac Res Total Allies . | . . . . . . . Largest Group . | . . . . . . . Highest-Rated Group . | . . . . . . . Highest-Rated Ally . | . . . . . . . Total Orders . | . . . . . . . Ally Attacks . | . . . . . . . Total Damage . | . . . . . . . Kills . | . . . . . . . Allies Corrupted . | . . . . . . . Allies Melted 2 | . . . 2 . . . Intel | -11 -10 -10 -7 -5 -4 -3 ------- Run | Yrd Mat Sub Scr Fac Fac Res Active Infowar (turns) . | . . . . . . . Robot Analysis Total . | . . . . . . . Derelict Logs Recovered . | . . . . . . . Drone Launches 22 | . . . . . . 22 Drone Recoveries 16 | . . . . . . 16 Exploration | -11 -10 -10 -7 -5 -4 -3 ------------- Run | Yrd Mat Sub Scr Fac Fac Res Turns Passed 6788 | 150 982 395 2680 1300 251 1030 Spaces Moved 3586 | 124 552 171 1419 690 176 454 Core 9 | 6 . . . 2 . 1 Treads 61 | . . . . . . 61 Legs 2949 | 51 552 171 1419 522 . 234 Wheels 67 | 67 . . . . . . Hover 498 | . . . . 164 176 158 Flight 2 | . . . . 2 . . Fastest Speed 50 | 50 120 120 100 74 71 68 Average Speed 149 | 100 120 185 185 136 71 125 Slowest Speed 525 | 120 120 190 190 525 71 450 Overloaded Moves . | . . . . . . . Propulsion Burnouts . | . . . . . . . Robots Hopped . | . . . . . . . Potential Cave-ins . | . . . . . . . Cave-ins Triggered . | . . . . . . . Exploration Rate (%) 30 | 6 74 16 88 16 6 8 Regions Visited 6 Branch Regions 2 Pre-discovered Areas 2 | . 1 . . . . 1 Known Exits Taken . | . . . . . . . Unknown Exits Taken 6 | 1 1 1 1 1 1 . Scrap Searched . | . . . . . . . Spaces Dug . | . . . . . . . Terrain Destroyed 78 | . . . . 38 . 40 Melee . | . . . . . . . Projectile 2 | . . . . . . 2 AOE 76 | . . . . 38 . 38 Terrain Rammed . | . . . . . . . Walls Destroyed . | . . . . . . . Machines Disabled . | . . . . . . . Actions | -11 -10 -10 -7 -5 -4 -3 --------- Run | Yrd Mat Sub Scr Fac Fac Res Total 4574 | 149 801 210 1470 951 245 748 Wait 417 | 4 185 8 15 99 15 91 Move 3580 | 123 551 170 1418 689 175 454 Hop . | . . . . . . . Pick Up 121 | 12 13 3 13 40 7 33 Fast Attach 6 | . . . . 6 . . Attach 70 | 6 1 1 1 16 6 39 Detach 6 | . . . 1 2 2 1 Swap 36 | 2 4 5 7 12 2 4 Drop 56 | 2 7 3 14 19 . 11 Fire 111 | . 40 19 1 12 . 39 Melee 170 | . . . . 56 38 76 Ram . | . . . . . . . Kick . | . . . . . . . Crush . | . . . . . . . Escape Stasis . | . . . . . . . Rewire . | . . . . . . . Trap . | . . . . . . . Miscellaneous 1 | . . 1 . . . . Route ------- -11/Scrapyard -10/Materials (discovered 6 exits: [*Mat x3] / [*Min x2] / [*Sub]) -10/Subcaves -7/Scraptown (discovered 2 exits: *Fac x2) -5/Factory -4/Factory -3/Research History --------- Turn | Location | Event 19 | -11/Scrapyard | Discovered new exit (range 16) 151 | -11/Scrapyard | Entered Materials 304 | -10/Materials | Build established: Mutant 549 | -10/Materials | Discovered new exit (range 16) 652 | -10/Materials | Discovered new exit (range 11) 704 | -10/Materials | Discovered new exit (range 14) 851 | -10/Materials | Derelicts attacked the area 995 | -10/Materials | Discovered new exit (range 3) 1049 | -10/Materials | Discovered new exit (range 10) 1127 | -10/Materials | Discovered new exit (range 5) 1133 | -10/Materials | Entered Subcaves 1134 | -10/Subcaves | Approached by a straggling Scientist 1170 | -10/Subcaves | A swath of the cavern ceiling suddenly collapsed 1525 | -10/Subcaves | Scientist uncovered a shortcut to Scraptown 1528 | -10/Subcaves | Entered Scraptown 2157 | -7/Scraptown | Visited Cave Peace 2214 | -7/Scraptown | Visited TADAMA 2281 | -7/Scraptown | Visited UFD Registry 2336 | -7/Scraptown | Visited CPS Storage 2600 | -7/Scraptown | Visited IN-MT5's Study 2646 | -7/Scraptown | Visited Shadow of the Wyrm 2684 | -7/Scraptown | Visited Assassins FH 2800 | -7/Scraptown | Visited Bundlers 3064 | -7/Scraptown | Discovered new exit (range 5) 3231 | -7/Scraptown | Registered with UFD as "Bladeback" 3313 | -7/Scraptown | Visited Supply Room 3355 | -7/Scraptown | Visited Derelict Rescue Squad 3412 | -7/Scraptown | Visited Botcube Research 3469 | -7/Scraptown | Visited Cartography Club 3678 | -7/Scraptown | Discovered new exit (range 5) 3748 | -7/Scraptown | Visited Sword Containment 3771 | -7/Scraptown | Found Prototype Slashing Weapon 3778 | -7/Scraptown | Identified Companion Sword 3821 | -7/Scraptown | Visited DA-N13 Charitable Foundation 3911 | -7/Scraptown | Met Optimus 3911 | -7/Scraptown | Accepted into 0bPrime 4030 | -7/Scraptown | Civil war broke out across Scraptown 4147 | -7/Scraptown | Lost 3 allies 4196 | -7/Scraptown | Lost 3 allies 4208 | -7/Scraptown | Entered Factory 4208 | -5/Factory | Evolved 10 slots: Propulsion x1, Utility x7, Weapon x2 4479 | -5/Factory | Build established: Scavenger-Mutant 5087 | -5/Factory | Discovered new exit (range 15) 5190 | -5/Factory | Build established: Mutant 5508 | -5/Factory | Entered another Factory area 5508 | -4/Factory | Evolved 2 slots: Propulsion x1, Utility x1 5537 | -4/Factory | Loaded intel: 8 recycling unit locations 5703 | -4/Factory | Discovered new exit (range 8) 5759 | -4/Factory | Entered Research 5759 | -3/Research | Evolved 2 slots: Propulsion x2 5863 | -3/Research | Lost 4 parts (4u) 6026 | -3/Research | Lost 3 parts (1n1u1w) 6243 | -3/Research | Lost 4 allies 6275 | -3/Research | Lost 5 parts (1n3u1w) 6366 | -3/Research | Build established: Scavenger-Mutant 6434 | -3/Research | Lost 4 parts (1p2u1w) 6592 | -3/Research | Lost 5 parts (1p1n2u1w) 6671 | -3/Research | Lost 3 parts (2n1w) 6725 | -3/Research | Loaded intel: 5 recycling unit locations 6725 | -3/Research | Learned location of Protoforge (-2) 6743 | -3/Research | Garrison activated, responded to threat 6759 | -3/Research | Core integrity fell below 50% 6783 | -3/Research | Core integrity fell below 20% 6789 | -3/Research | Destroyed by G-67 Veteran with Plasma Rifle Last Messages --------------- 06780_ R-10 Processor collects Corrupted Field Laser. 06781_ K-01 Serf collects debris. 06781_ Destroyed Imp. Phase Shifter. 06784_ Slug penetrates Wall. 06784_ K-01 Serf collects debris. 06784_ Imp. Melee Analysis Suite severed. 06785_ R-10 Processor collects Corrupted Imp. Phase Shifter. 06785_ R-10 Processor collects Med. Matter Pod. 06786_ Companion Sword surprise attacks H-77 Assassin. 06787_ K-01 Serf destroyed. 06787_ K-01 Serf collects debris. 06787_ Slug penetrates Wall. 06788_ R-10 Processor collects Med. Matter Pod. 06789_ Companion Sword surprise attacks H-77 Assassin. Companion Sword: "Tag team!" 06789_ R-10 Processor collects Wheel. Map ----- +----------------------------------------------------+ | #####+######### #??????????????????????????? | | ####?? !%[ ?!= ## #??????????????????????????? | | ???? ## #??????????????????????????? | | ???# ## #??????????????????????????? | | ???# ## #??????????????????????????? | | ???# ## #??????????????????????????? | | ???############### #??????????????????????????? | | ????# # #??????????????????????????? | | ????# # #??????????????????????????? | | ????# # #??????????????????????????? | | ????# # #??????????????????????????? | | ????# # #??????????????????????????? | | ????# / #??????????????????????????? | | ????# # #??????????????????????????? | | ????# # ##########?????????????????? | | ????# # # #???? ????????????? | | ????# # # #?T ??????????? | | ????# # + """ #"" ???????? | | ????# ###### "Y" #"" ??????? | | ????##############????# + ??????? | | ??????????????????????# # ??????? | | ??????????????????????# #?????????????????? | | ??????????????????????# #?????????????????? | | ??????????????????????# [ #??#??????????????? | | ?????????????????###########+###T ##### #?????? | | ?????????????????# kh@ % % #?????? | | ?????????????????# l R #?????? | | ?????????????????# bgk% #?????? | | ?????????????????# Rg= #?????? | | ?????????????????# ######+##############??????? | | ?????????????????# ????? ???????????????????? | | ?????????????????# ?????? ???????????????????? | | ???????????????? ???????"" ???????????????????? | | ?????????????? ????????"" ???????????????????? | | ?????????????? ?????????"" ???????????????????? | | ?????????????? ??????????"" ???????????????????? | | ??????????????+#????????????? ??????????????????? | | ????????????????????????????? ??????????????????? | | ?????????????????????????????##??????????????????? | | ?????????????????????????????????????????????????? | | ?????????????????????????????????????????????????? | | ?????????????????????????????????????????????????? | | ?????????????????????????????????????????????????? | | ?????????????????????????????????????????????????? | | ?????????????????????????????????????????????????? | | ?????????????????????????????????????????????????? | | ?????????????????????????????????????????????????? | | ?????????????????????????????????????????????????? | | ?????????????????????????????????????????????????? | | ?????????????????????????????????????????????????? | +----------------------------------------------------+ Best States ------------- Heat Dissipation 73 Energy Generation 23 Energy Capacity 340 Matter Stores 300 Matter Capacity 300 Sight Range 16 Terrain Scan Density 10 Armor Coverage 800 Resistance: KI 25 Weapon Cycling 20 Evasion (%) 70 Targeting Accuracy 5 Melee Accuracy 18 Recoil Reduction 2 Item Schematics ----------------- None Robot Schematics ------------------ None Fabricated ------------ Nothing Repaired ---------- Nothing Studied --------- None Alien Tech Used ----------------- None Achievements -------------- Ambidextrous Civilization 2243 Ew, Corruption Link The Feds Nice Directions, Buddy Release The Drones! Respectable Loadout Survival Of The Most Covered Uncivil War Challenges ------------ None Game ------ Seed TerrainGunGriptreads Manual? 0 Play Time 01:36:08 Cumulative 62.3 hours Start 2026.01.27 @ 09:25:19 End 2026.01.27 @ 11:07:31 Sessions 1 Manual Loads 0 Difficulty Rogue Special Mode None Game No. 117 Rogue 117 Adventurer 0 Explorer 0 Win Type - Total 0 Types 0/0/0/0/0/0/0/0/0/0 Lore% 23 Gallery% 31 Achievement% 21 Wizard Run 0 Options --------- Layout 1 ASCII 0 Keyboard 0 Movement Mouse Keybinds 0 Fullscreen 1 Font 32/Cog Map View 50x35 Zoom Use 0% Tactical HUD 1 Map Filters NONE Filters NONE Steam 1 RUN: 8fc76ccf-1beb-4663-88b4-3c3e1e491cc8